[Event "Live Chess"]
[Site "Chess.com"]
[Date "2023.05.21"]
[Round "-"]
[White "Nazar_777"]
[Black "nigelst"]
[Result "1-0"]
[WhiteElo "1635"]
[BlackElo "1724"]
[TimeControl "300"]
[EndTime "22:41:37 PDT"]
[Termination "Nazar_777 won by checkmate"]

1. e3 {[%clk 0:04:58.2]} 1... d5 {[%clk 0:04:55]} 2. h4 {[%clk 0:04:53.6]} 2...
e5 {[%clk 0:04:52.9]} 3. a3 {[%clk 0:04:52.8]} 3... Nf6 {[%clk 0:04:50.5]} 4. c4
{[%clk 0:04:51.7]} 4... c6 {[%clk 0:04:45.3]} 5. cxd5 {[%clk 0:04:50.6]} 5...
cxd5 {[%clk 0:04:43.2]} 6. Nc3 {[%clk 0:04:50]} 6... Nc6 {[%clk 0:04:39.8]} 7.
Be2 {[%clk 0:04:49.2]} 7... Bd6 {[%clk 0:04:30.4]} 8. Nf3 {[%clk 0:04:47.9]}
8... Bc7 {[%clk 0:04:22.6]} 9. Qc2 {[%clk 0:04:46.5]} 9... Be6 {[%clk
0:04:18.6]} 10. b4 {[%clk 0:04:45.1]} 10... d4 {[%clk 0:04:16.2]} 11. Ne4 {[%clk
0:04:43.6]} 11... Nxe4 {[%clk 0:04:10]} 12. Qxe4 {[%clk 0:04:42.2]} 12... Bd5
{[%clk 0:03:59.7]} 13. Qc2 {[%clk 0:04:40.4]} 13... O-O {[%clk 0:03:55.4]} 14.
Ng5 {[%clk 0:04:38.3]} 14... f5 {[%clk 0:03:41.9]} 15. Bc4 {[%clk 0:04:31.9]}
15... dxe3 {[%clk 0:03:27.1]} 16. dxe3 {[%clk 0:04:29.4]} 16... h6 {[%clk
0:03:10.7]} 17. Nf3 {[%clk 0:04:19]} 17... Kh8 {[%clk 0:03:00.2]} 18. Bb2 {[%clk
0:04:11.8]} 18... Bxf3 {[%clk 0:02:53.6]} 19. gxf3 {[%clk 0:04:10.6]} 19... Qe7
{[%clk 0:02:38.7]} 20. Rd1 {[%clk 0:04:02.4]} 20... Rad8 {[%clk 0:02:34.6]} 21.
Rg1 {[%clk 0:03:58.3]} 21... Rxd1+ {[%clk 0:02:30.6]} 22. Kxd1 {[%clk
0:03:56.8]} 22... Qxh4 {[%clk 0:02:09.3]} 23. Ke2 {[%clk 0:03:48.5]} 23... a6
{[%clk 0:01:57.1]} 24. Bd3 {[%clk 0:03:38.6]} 24... Ne7 {[%clk 0:01:52.6]} 25.
Qxc7 {[%clk 0:03:32.9]} 25... Qf6 {[%clk 0:01:42.3]} 26. Qc2 {[%clk 0:03:29.6]}
26... Rc8 {[%clk 0:01:36.6]} 27. Qb1 {[%clk 0:03:27.3]} 27... Nd5 {[%clk
0:01:23.9]} 28. f4 {[%clk 0:03:22.5]} 28... Nc3+ {[%clk 0:01:20.8]} 29. Bxc3
{[%clk 0:03:20.4]} 29... Rxc3 {[%clk 0:01:19.2]} 30. Qb2 {[%clk 0:03:18.7]}
30... Qc6 {[%clk 0:01:08.4]} 31. Kd2 {[%clk 0:03:04]} 31... Rxd3+ {[%clk
0:00:59.8]} 32. Kxd3 {[%clk 0:03:01.4]} 32... Qe4+ {[%clk 0:00:54.4]} 33. Ke2
{[%clk 0:02:56.4]} 33... exf4 {[%clk 0:00:53.3]} 34. Qxg7# {[%clk 0:02:54.6]}
1-0

[Event "Live Chess"]
[Site "Chess.com"]
[Date "2023.05.21"]
[Round "-"]
[White "Jo1ts"]
[Black "chessfiction"]
[Result "0-1"]
[WhiteElo "825"]
[BlackElo "2345"]
[TimeControl "300"]
[EndTime "22:41:47 PDT"]
[Termination "chessfiction won by resignation"]

1. d4 {[%clk 0:04:57]} 1... e5 {[%clk 0:04:59.9]} 2. dxe5 {[%clk 0:04:50.2]}
2... Nc6 {[%clk 0:04:59.2]} 3. Nf3 {[%clk 0:04:45.8]} 3... f6 {[%clk 0:04:59.1]}
4. exf6 {[%clk 0:04:43.7]} 4... Nxf6 {[%clk 0:04:58.5]} 5. Nc3 {[%clk
0:04:36.2]} 5... Bc5 {[%clk 0:04:57.9]} 6. a3 {[%clk 0:04:32.5]} 6... O-O {[%clk
0:04:56.3]} 7. h3 {[%clk 0:04:28.5]} 7... d5 {[%clk 0:04:54.1]} 8. Bg5 {[%clk
0:04:26.3]} 8... Be6 {[%clk 0:04:48.8]} 9. e3 {[%clk 0:04:08.6]} 9... Kh8 {[%clk
0:04:41.6]} 10. Bd3 {[%clk 0:04:05.4]} 10... Qe8 {[%clk 0:04:38]} 11. Qe2 {[%clk
0:03:55]} 11... Qh5 {[%clk 0:04:32]} 12. Bf4 {[%clk 0:03:40.9]} 12... h6 {[%clk
0:04:26.8]} 13. Bxc7 {[%clk 0:03:35.4]} 13... Rac8 {[%clk 0:04:24.5]} 14. Bf4
{[%clk 0:03:28.6]} 14... Qf7 {[%clk 0:04:15.8]} 15. g4 {[%clk 0:03:24.3]} 15...
d4 {[%clk 0:04:14.8]} 16. exd4 {[%clk 0:03:19.6]} 16... Nxd4 {[%clk 0:04:14.7]}
17. Nxd4 {[%clk 0:03:10.6]} 17... Bxd4 {[%clk 0:04:14.6]} 18. Bd2 {[%clk
0:03:00]} 18... Rfe8 {[%clk 0:04:09]} 19. O-O-O {[%clk 0:02:33.3]} 19... Bxg4
{[%clk 0:03:59.6]} 20. Qf1 {[%clk 0:02:09.9]} 20... Bxd1 {[%clk 0:03:55.9]} 21.
Qxd1 {[%clk 0:02:06.6]} 21... Bxc3 {[%clk 0:03:53.1]} 22. Bxc3 {[%clk
0:02:04.4]} 22... Rxc3 {[%clk 0:03:52.2]} 23. bxc3 {[%clk 0:02:03.5]} 23... Nd5
{[%clk 0:03:48.3]} 24. Bc4 {[%clk 0:01:58.1]} 24... Qf4+ {[%clk 0:03:45.7]} 25.
Kb1 {[%clk 0:01:47.4]} 25... Nxc3+ {[%clk 0:03:42.3]} 0-1

[Event "Live Chess"]
[Site "Chess.com"]
[Date "2023.05.21"]
[Round "-"]
[White "YrrriKharkiv"]
[Black "Nazarenko_vital"]
[Result "0-1"]
[WhiteElo "2012"]
[BlackElo "1637"]
[TimeControl "300"]
[EndTime "22:42:17 PDT"]
[Termination "Nazarenko_vital won by resignation"]

1. d4 {[%clk 0:04:57.1]} 1... Nf6 {[%clk 0:04:58.4]} 2. Nf3 {[%clk 0:04:54.6]}
2... b5 {[%clk 0:04:56.7]} 3. a4 {[%clk 0:04:51.3]} 3... b4 {[%clk 0:04:53.9]}
4. a5 {[%clk 0:04:50]} 4... e6 {[%clk 0:04:35.7]} 5. c4 {[%clk 0:04:48.5]} 5...
c5 {[%clk 0:04:30]} 6. d5 {[%clk 0:04:41.6]} 6... exd5 {[%clk 0:04:28]} 7. cxd5
{[%clk 0:04:40.7]} 7... d6 {[%clk 0:04:22.1]} 8. Bg5 {[%clk 0:04:19.5]} 8... h6
{[%clk 0:04:11]} 9. Bf4 {[%clk 0:04:14.4]} 9... Be7 {[%clk 0:04:09.8]} 10. e3
{[%clk 0:04:09.9]} 10... O-O {[%clk 0:04:00.6]} 11. Bc4 {[%clk 0:04:06.2]} 11...
Ba6 {[%clk 0:03:58.9]} 12. b3 {[%clk 0:04:04.7]} 12... Bxc4 {[%clk 0:03:57.4]}
13. bxc4 {[%clk 0:04:03.4]} 13... Nbd7 {[%clk 0:03:49.8]} 14. Nbd2 {[%clk
0:03:58]} 14... Re8 {[%clk 0:03:30.6]} 15. Qa4 {[%clk 0:03:35.5]} 15... Bf8
{[%clk 0:03:09.7]} 16. O-O {[%clk 0:03:29.7]} 16... Ne4 {[%clk 0:02:36.3]} 17.
Nxe4 {[%clk 0:03:12.8]} 17... Rxe4 {[%clk 0:02:31.5]} 18. Qc2 {[%clk 0:03:12.1]}
18... Re8 {[%clk 0:02:13.1]} 19. Nd2 {[%clk 0:03:07.9]} 19... g6 {[%clk
0:02:08]} 20. Nb3 {[%clk 0:03:03.4]} 20... Rb8 {[%clk 0:02:01.2]} 21. e4 {[%clk
0:02:55]} 21... Qh4 {[%clk 0:01:57.9]} 22. g3 {[%clk 0:02:39.4]} 22... Qh5
{[%clk 0:01:55.2]} 23. f3 {[%clk 0:02:32.1]} 23... g5 {[%clk 0:01:53]} 24. g4
{[%clk 0:02:23.3]} 24... Qg6 {[%clk 0:01:51]} 25. Bg3 {[%clk 0:02:16.4]} 25...
Bg7 {[%clk 0:01:50.4]} 26. Rae1 {[%clk 0:02:09.1]} 26... Be5 {[%clk 0:01:50]}
27. Kg2 {[%clk 0:02:06.4]} 27... h5 {[%clk 0:01:46.9]} 28. h3 {[%clk 0:02:04.3]}
28... Bxg3 {[%clk 0:01:44]} 29. Kxg3 {[%clk 0:02:03]} 29... Qf6 {[%clk
0:01:42.7]} 30. Nc1 {[%clk 0:01:49]} 30... b3 {[%clk 0:01:35.2]} 31. Nxb3 {[%clk
0:01:42.4]} 31... Rb4 {[%clk 0:01:31.6]} 32. Nd2 {[%clk 0:01:36.2]} 32... Reb8
{[%clk 0:01:26.3]} 33. Rb1 {[%clk 0:01:33.9]} 33... Rb2 {[%clk 0:01:21.8]} 34.
Rxb2 {[%clk 0:01:31.1]} 34... Rxb2 {[%clk 0:01:19.9]} 35. Qc1 {[%clk 0:01:09.7]}
35... Qf4+ {[%clk 0:01:16.8]} 36. Kg2 {[%clk 0:01:08.7]} 36... Rxd2+ {[%clk
0:01:15]} 0-1

[Event "Live Chess"]
[Site "Chess.com"]
[Date "2023.05.21"]
[Round "-"]
[White "matt1979"]
[Black "CheckThis4"]
[Result "0-1"]
[WhiteElo "1502"]
[BlackElo "2493"]
[TimeControl "300"]
[EndTime "22:42:51 PDT"]
[Termination "CheckThis4 won by checkmate"]

1. f4 {[%clk 0:04:57.5]} 1... e5 {[%clk 0:04:58.1]} 2. fxe5 {[%clk 0:04:56.5]}
2... d6 {[%clk 0:04:57.2]} 3. exd6 {[%clk 0:04:55.5]} 3... Bxd6 {[%clk
0:04:57.1]} 4. Nf3 {[%clk 0:04:54]} 4... Bg4 {[%clk 0:04:49.7]} 5. e3 {[%clk
0:04:49.6]} 5... Nc6 {[%clk 0:04:47.9]} 6. Be2 {[%clk 0:04:48.3]} 6... Nf6
{[%clk 0:04:45.4]} 7. O-O {[%clk 0:04:47.1]} 7... h5 {[%clk 0:04:40.3]} 8. h3
{[%clk 0:04:38.5]} 8... Ne4 {[%clk 0:04:28.3]} 9. hxg4 {[%clk 0:04:25.9]} 9...
hxg4 {[%clk 0:04:25.7]} 10. d3 {[%clk 0:04:01.4]} 10... gxf3 {[%clk 0:04:24.4]}
11. dxe4 {[%clk 0:03:52.4]} 11... Rh1+ {[%clk 0:04:09.9]} 12. Kf2 {[%clk
0:03:45.7]} 12... Qh4+ {[%clk 0:04:05.8]} 13. g3 {[%clk 0:03:41.9]} 13... Qxg3#
{[%clk 0:04:02.6]} 0-1

[Event "Live Chess"]
[Site "Chess.com"]
[Date "2023.05.21"]
[Round "-"]
[White "tpm07"]
[Black "Conradical12"]
[Result "1-0"]
[WhiteElo "1929"]
[BlackElo "1628"]
[TimeControl "300"]
[EndTime "22:42:52 PDT"]
[Termination "tpm07 won by resignation"]

1. e4 {[%clk 0:04:57.5]} 1... e5 {[%clk 0:04:59.4]} 2. Nf3 {[%clk 0:04:48.9]}
2... Nc6 {[%clk 0:04:58.8]} 3. Bb5 {[%clk 0:04:48.6]} 3... Nf6 {[%clk
0:04:56.9]} 4. d3 {[%clk 0:04:47.3]} 4... Bc5 {[%clk 0:04:55.4]} 5. Bxc6 {[%clk
0:04:46]} 5... dxc6 {[%clk 0:04:52.9]} 6. Nbd2 {[%clk 0:04:45.4]} 6... O-O
{[%clk 0:04:50]} 7. O-O {[%clk 0:04:43.7]} 7... Bd6 {[%clk 0:04:44.4]} 8. Nc4
{[%clk 0:04:41.9]} 8... b5 {[%clk 0:04:42.2]} 9. Ncxe5 {[%clk 0:04:39.3]} 9...
Ng4 {[%clk 0:04:34.5]} 10. Nxg4 {[%clk 0:04:25.8]} 10... Bxg4 {[%clk 0:04:32]}
11. h3 {[%clk 0:04:24.7]} 11... Bxh3 {[%clk 0:04:22.3]} 12. gxh3 {[%clk
0:04:07.9]} 12... Re8 {[%clk 0:04:22.2]} 13. Bg5 {[%clk 0:03:56.7]} 13... Qd7
{[%clk 0:04:12.9]} 14. Kg2 {[%clk 0:03:50.3]} 14... Re6 {[%clk 0:04:10.3]} 15.
Nh4 {[%clk 0:03:40.6]} 15... h6 {[%clk 0:03:57.5]} 16. Be3 {[%clk 0:03:35]}
16... Qe7 {[%clk 0:03:50.9]} 17. Qg4 {[%clk 0:03:31.8]} 17... Qf6 {[%clk
0:03:33.1]} 18. c3 {[%clk 0:03:14.1]} 18... g5 {[%clk 0:03:18.3]} 19. Nf5 {[%clk
0:03:08.6]} 19... Qe5 {[%clk 0:03:14]} 20. f4 {[%clk 0:03:02.8]} 20... Qxf5
{[%clk 0:03:03.2]} 21. Qxf5 {[%clk 0:02:55.2]} 1-0

[Event "Live Chess"]
[Site "Chess.com"]
[Date "2023.05.21"]
[Round "-"]
[White "Rusty_Bridges"]
[Black "seabuck"]
[Result "0-1"]
[WhiteElo "1436"]
[BlackElo "1891"]
[TimeControl "300"]
[EndTime "22:42:56 PDT"]
[Termination "seabuck won by resignation"]

1. e4 {[%clk 0:04:55.5]} 1... c6 {[%clk 0:04:58.9]} 2. d4 {[%clk 0:04:51.4]}
2... d5 {[%clk 0:04:57.6]} 3. exd5 {[%clk 0:04:47.6]} 3... cxd5 {[%clk
0:04:56.1]} 4. Nf3 {[%clk 0:04:45.3]} 4... Nc6 {[%clk 0:04:54.6]} 5. Bb5 {[%clk
0:04:35.7]} 5... Nf6 {[%clk 0:04:51.9]} 6. O-O {[%clk 0:04:29]} 6... Bg4 {[%clk
0:04:45]} 7. Be3 {[%clk 0:04:17.6]} 7... e6 {[%clk 0:04:32.4]} 8. Nbd2 {[%clk
0:04:09]} 8... Bd6 {[%clk 0:04:26.8]} 9. c3 {[%clk 0:03:59.1]} 9... O-O {[%clk
0:04:23.7]} 10. h3 {[%clk 0:03:57]} 10... Bh5 {[%clk 0:04:21.8]} 11. Qc2 {[%clk
0:03:47.8]} 11... Rc8 {[%clk 0:04:13.7]} 12. Bd3 {[%clk 0:03:41.3]} 12... Nb4
{[%clk 0:04:00.3]} 13. Qb1 {[%clk 0:03:35.1]} 13... Nxd3 {[%clk 0:03:57.6]} 14.
Qxd3 {[%clk 0:03:33.1]} 14... Bg6 {[%clk 0:03:56.6]} 15. Qe2 {[%clk 0:03:30.4]}
15... a5 {[%clk 0:03:42.8]} 16. Bg5 {[%clk 0:03:28.1]} 16... a4 {[%clk
0:03:36.6]} 17. Ne5 {[%clk 0:03:25.9]} 17... a3 {[%clk 0:03:27.2]} 18. bxa3
{[%clk 0:03:10.8]} 18... Rxc3 {[%clk 0:03:18.9]} 19. Nb3 {[%clk 0:02:58.6]}
19... Bxa3 {[%clk 0:03:00]} 20. Ng4 {[%clk 0:02:55.4]} 20... Be7 {[%clk
0:02:50.9]} 21. Nc5 {[%clk 0:02:32.3]} 21... Bxc5 {[%clk 0:02:25.9]} 22. Bxf6
{[%clk 0:02:17.5]} 22... gxf6 {[%clk 0:02:21.4]} 23. dxc5 {[%clk 0:02:14.4]}
23... Rxc5 {[%clk 0:02:07]} 24. Qb2 {[%clk 0:02:09.2]} 24... Kg7 {[%clk
0:01:54.3]} 25. Qxb7 {[%clk 0:01:25.9]} 25... h5 {[%clk 0:01:49.5]} 26. Ne3
{[%clk 0:01:22.9]} 26... d4 {[%clk 0:01:42.5]} 27. Nd1 {[%clk 0:01:06.9]} 27...
Qd5 {[%clk 0:01:33.9]} 28. Qxd5 {[%clk 0:00:54.8]} 28... Rxd5 {[%clk 0:01:32.6]}
29. Nb2 {[%clk 0:00:46.8]} 29... d3 {[%clk 0:01:28.3]} 30. a4 {[%clk 0:00:44.2]}
30... d2 {[%clk 0:01:27]} 31. a5 {[%clk 0:00:37.5]} 31... Ra8 {[%clk 0:01:23.2]}
32. a6 {[%clk 0:00:36.1]} 32... Bd3 {[%clk 0:01:18]} 33. Rfd1 {[%clk 0:00:32.1]}
33... Bxa6 {[%clk 0:01:07]} 34. Na4 {[%clk 0:00:18.7]} 34... Rb8 {[%clk
0:00:56.3]} 35. Ra2 {[%clk 0:00:12.4]} 35... Rb4 {[%clk 0:00:46.1]} 36. Nb2
{[%clk 0:00:09.6]} 36... Be2 {[%clk 0:00:40.8]} 37. Rb1 {[%clk 0:00:04.6]} 37...
d1=Q+ {[%clk 0:00:37.9]} 0-1

[Event "Live Chess"]
[Site "Chess.com"]
[Date "2023.05.21"]
[Round "-"]
[White "OleksiyJr1"]
[Black "Hacker_2009"]
[Result "0-1"]
[WhiteElo "964"]
[BlackElo "1945"]
[TimeControl "300"]
[EndTime "22:42:59 PDT"]
[Termination "Hacker_2009 won by checkmate"]

1. e4 {[%clk 0:04:54.4]} 1... c5 {[%clk 0:04:58.2]} 2. Nf3 {[%clk 0:04:53.7]}
2... d6 {[%clk 0:04:57.1]} 3. d4 {[%clk 0:04:49.1]} 3... cxd4 {[%clk 0:04:57]}
4. Qxd4 {[%clk 0:04:48.3]} 4... Nc6 {[%clk 0:04:55.5]} 5. Bb5 {[%clk 0:04:47.9]}
5... Bd7 {[%clk 0:04:54.2]} 6. Bxc6 {[%clk 0:04:47.4]} 6... Bxc6 {[%clk
0:04:54]} 7. Nc3 {[%clk 0:04:45.4]} 7... Nf6 {[%clk 0:04:53.4]} 8. Qe3 {[%clk
0:04:43.1]} 8... e6 {[%clk 0:04:52.2]} 9. O-O {[%clk 0:04:40.1]} 9... Be7 {[%clk
0:04:50.6]} 10. Re1 {[%clk 0:04:39.6]} 10... O-O {[%clk 0:04:49.1]} 11. Bd2
{[%clk 0:04:39]} 11... Rc8 {[%clk 0:04:47.1]} 12. a3 {[%clk 0:04:36.8]} 12... d5
{[%clk 0:04:46]} 13. exd5 {[%clk 0:04:29.5]} 13... Nxd5 {[%clk 0:04:44.7]} 14.
Nxd5 {[%clk 0:04:28.3]} 14... Bxd5 {[%clk 0:04:41.6]} 15. Bc3 {[%clk 0:04:26.9]}
15... Bf6 {[%clk 0:04:39.9]} 16. Bxf6 {[%clk 0:04:17.5]} 16... Qxf6 {[%clk
0:04:37.9]} 17. Rad1 {[%clk 0:04:16.3]} 17... Qxb2 {[%clk 0:04:34.7]} 18. Qxa7
{[%clk 0:04:13.6]} 18... Rxc2 {[%clk 0:04:27.3]} 19. Nd4 {[%clk 0:04:03.4]}
19... Rxf2 {[%clk 0:04:22.3]} 20. Nxe6 {[%clk 0:03:57.6]} 20... Rxg2+ {[%clk
0:04:20.6]} 21. Kh1 {[%clk 0:03:55.5]} 21... Rxh2+ {[%clk 0:04:19.6]} 22. Kg1
{[%clk 0:03:54.3]} 22... Qg2# {[%clk 0:04:18.5]} 0-1

[Event "Live Chess"]
[Site "Chess.com"]
[Date "2023.05.21"]
[Round "-"]
[White "Ocelot32"]
[Black "Shepherds_Pie"]
[Result "0-1"]
[WhiteElo "1344"]
[BlackElo "1922"]
[TimeControl "300"]
[EndTime "22:43:05 PDT"]
[Termination "Shepherds_Pie won by resignation"]

1. e4 {[%clk 0:04:57.1]} 1... e6 {[%clk 0:04:58.1]} 2. d4 {[%clk 0:04:55.6]}
2... d5 {[%clk 0:04:56.6]} 3. exd5 {[%clk 0:04:54.4]} 3... exd5 {[%clk
0:04:55.4]} 4. Bd3 {[%clk 0:04:54.1]} 4... Nc6 {[%clk 0:04:53.7]} 5. Ne2 {[%clk
0:04:52.3]} 5... Bd6 {[%clk 0:04:52.4]} 6. O-O {[%clk 0:04:51.1]} 6... Nge7
{[%clk 0:04:51.1]} 7. Bf4 {[%clk 0:04:50]} 7... Bxf4 {[%clk 0:04:49.5]} 8. Nxf4
{[%clk 0:04:49.1]} 8... Bf5 {[%clk 0:04:47]} 9. Bxf5 {[%clk 0:04:47.5]} 9...
Nxf5 {[%clk 0:04:45.9]} 10. c3 {[%clk 0:04:45.5]} 10... Nce7 {[%clk 0:04:44.9]}
11. Re1 {[%clk 0:04:44.4]} 11... c6 {[%clk 0:04:43.8]} 12. Qg4 {[%clk
0:04:42.7]} 12... O-O {[%clk 0:04:41.1]} 13. Nd2 {[%clk 0:04:32.6]} 13... Qd6
{[%clk 0:04:38.6]} 14. Nf3 {[%clk 0:04:24]} 14... Rae8 {[%clk 0:04:30.3]} 15.
Re5 {[%clk 0:04:09.7]} 15... Nh6 {[%clk 0:04:25.4]} 16. Qg3 {[%clk 0:04:04]}
16... Ng6 {[%clk 0:04:22]} 17. Nxg6 {[%clk 0:03:59.6]} 17... Qxg6 {[%clk
0:04:15.4]} 18. Rg5 {[%clk 0:03:52.7]} 18... Qf6 {[%clk 0:04:11.8]} 19. Ne5
{[%clk 0:03:46.2]} 19... Nf5 {[%clk 0:04:06.3]} 20. Qg4 {[%clk 0:03:40.3]} 20...
h6 {[%clk 0:03:57.6]} 21. Nd7 {[%clk 0:03:36.9]} 21... Qxg5 {[%clk 0:03:54.6]}
22. Qxg5 {[%clk 0:03:33.5]} 22... hxg5 {[%clk 0:03:53.2]} 23. Nxf8 {[%clk
0:03:31.9]} 23... Kxf8 {[%clk 0:03:52]} 24. g3 {[%clk 0:03:26.9]} 24... Nd6
{[%clk 0:03:50.7]} 25. Kg2 {[%clk 0:03:18.9]} 25... g4 {[%clk 0:03:49.3]} 26. h3
{[%clk 0:03:17.2]} 26... gxh3+ {[%clk 0:03:42.9]} 27. Kh2 {[%clk 0:03:16.4]} 0-1

[Event "Live Chess"]
[Site "Chess.com"]
[Date "2023.05.21"]
[Round "-"]
[White "Grookey2012"]
[Black "Nazar_777"]
[Result "0-1"]
[WhiteElo "563"]
[BlackElo "1635"]
[TimeControl "300"]
[EndTime "22:43:39 PDT"]
[Termination "Nazar_777 won by resignation"]

1. e4 {[%clk 0:04:59.2]} 1... e6 {[%clk 0:04:52.5]} 2. Bc4 {[%clk 0:04:59.1]}
2... a6 {[%clk 0:04:51.9]} 3. Nf3 {[%clk 0:04:57.7]} 3... h5 {[%clk 0:04:51.3]}
4. d4 {[%clk 0:04:56.1]} 4... c5 {[%clk 0:04:50.7]} 5. d5 {[%clk 0:04:55.9]}
5... Nf6 {[%clk 0:04:48.3]} 6. dxe6 {[%clk 0:04:54.6]} 6... fxe6 {[%clk
0:04:47.3]} 7. Ng5 {[%clk 0:04:51.6]} 7... Be7 {[%clk 0:04:46.5]} 8. g4 {[%clk
0:04:48.7]} 8... Qc7 {[%clk 0:04:45.6]} 9. gxh5 {[%clk 0:04:46.2]} 9... Nxh5
{[%clk 0:04:43]} 10. Qf3 {[%clk 0:04:41.2]} 10... Nf6 {[%clk 0:04:40.7]} 11. Bf4
{[%clk 0:04:35.9]} 11... Bd6 {[%clk 0:04:38.1]} 12. e5 {[%clk 0:04:32.6]} 12...
Bxe5 {[%clk 0:04:36.3]} 13. Bxe5 {[%clk 0:04:29.9]} 13... Qxe5+ {[%clk
0:04:35.2]} 14. Qe3 {[%clk 0:04:20.3]} 14... Qc7 {[%clk 0:04:31.2]} 15. Nc3
{[%clk 0:04:12.9]} 15... Nc6 {[%clk 0:04:30.1]} 16. Nce4 {[%clk 0:04:11.6]}
16... Nd4 {[%clk 0:04:27.2]} 17. Nxf6+ {[%clk 0:04:09.4]} 17... gxf6 {[%clk
0:04:26.1]} 18. Nf3 {[%clk 0:03:58.1]} 18... Nxc2+ {[%clk 0:04:24.2]} 0-1

[Event "Live Chess"]
[Site "Chess.com"]
[Date "2023.05.21"]
[Round "-"]
[White "martinsmartin63"]
[Black "BillythekidFellowes"]
[Result "0-1"]
[WhiteElo "762"]
[BlackElo "2032"]
[TimeControl "300"]
[EndTime "22:44:40 PDT"]
[Termination "BillythekidFellowes won by resignation"]

1. e4 {[%clk 0:04:57.2]} 1... Nc6 {[%clk 0:04:55.5]} 2. Nf3 {[%clk 0:04:52.1]}
2... d6 {[%clk 0:04:53.8]} 3. d4 {[%clk 0:04:48.3]} 3... Nf6 {[%clk 0:04:47.8]}
4. Nc3 {[%clk 0:04:44.6]} 4... g6 {[%clk 0:04:41.1]} 5. d5 {[%clk 0:04:39]} 5...
Nb8 {[%clk 0:04:25.9]} 6. Bb5+ {[%clk 0:04:32.4]} 6... Bd7 {[%clk 0:04:23.8]} 7.
Qe2 {[%clk 0:04:28]} 7... Bg7 {[%clk 0:04:23.1]} 8. Bxd7+ {[%clk 0:04:24.2]}
8... Nbxd7 {[%clk 0:04:21.2]} 9. O-O {[%clk 0:04:17.5]} 9... O-O {[%clk
0:04:18]} 10. e5 {[%clk 0:04:03.6]} 10... Nxe5 {[%clk 0:03:57.1]} 11. Nxe5
{[%clk 0:03:59.4]} 11... dxe5 {[%clk 0:03:57]} 12. Qxe5 {[%clk 0:03:53.7]} 12...
c6 {[%clk 0:03:55.3]} 13. d6 {[%clk 0:03:47.4]} 13... exd6 {[%clk 0:03:53.5]}
14. Qg3 {[%clk 0:03:40.3]} 14... Qd7 {[%clk 0:03:42.9]} 15. Re1 {[%clk
0:03:37.8]} 15... Rfe8 {[%clk 0:03:35.5]} 16. Rxe8+ {[%clk 0:03:32.7]} 16...
Rxe8 {[%clk 0:03:35.4]} 17. Bg5 {[%clk 0:03:29.5]} 17... Nh5 {[%clk 0:03:32.2]}
18. Qh4 {[%clk 0:03:19.6]} 18... Qe6 {[%clk 0:03:29.8]} 19. g3 {[%clk
0:03:10.1]} 19... d5 {[%clk 0:03:25.5]} 20. Bd2 {[%clk 0:02:58.7]} 20... d4
{[%clk 0:03:22.3]} 21. Qe4 {[%clk 0:02:49]} 21... dxc3 {[%clk 0:03:19.5]} 22.
Qxe6 {[%clk 0:02:46.2]} 22... Rxe6 {[%clk 0:03:19.4]} 23. Bxc3 {[%clk
0:02:42.6]} 23... Bxc3 {[%clk 0:03:17.8]} 24. bxc3 {[%clk 0:02:39.8]} 24... Nf6
{[%clk 0:03:13.8]} 25. Rd1 {[%clk 0:02:35.8]} 25... Kf8 {[%clk 0:03:09.5]} 26.
Rd8+ {[%clk 0:02:30.7]} 26... Re8 {[%clk 0:03:04.9]} 27. Rd6 {[%clk 0:02:24.5]}
27... Ne4 {[%clk 0:03:02.3]} 28. Rd7 {[%clk 0:02:16.8]} 28... Re7 {[%clk
0:03:00.7]} 29. Rd3 {[%clk 0:02:10.8]} 29... Nc5 {[%clk 0:02:56.5]} 30. Rd4
{[%clk 0:02:03.3]} 30... Kg7 {[%clk 0:02:53.2]} 31. c4 {[%clk 0:02:00.6]} 31...
Re4 {[%clk 0:02:50.3]} 32. Rd3 {[%clk 0:01:51.7]} 32... Nxd3 {[%clk 0:02:47.9]}
33. cxd3 {[%clk 0:01:48.2]} 33... Rd4 {[%clk 0:02:47]} 0-1